[Event "*** Titled Tuesday Blitz"]
[Site "Chess.com"]
[Date "2021.02.09"]
[Round "11"]
[White "MFguimaraes"]
[Black "Unknown_IM"]
[Result "0-1"]
[WhiteElo "2409"]
[BlackElo "2360"]
[TimeControl "180+1"]
[EndTime "12:04:56 PST"]
[Termination "Unknown_IM won by checkmate"]

1. e4 {[%clk 0:03:00.9]} 1... e5 {[%clk 0:02:59.4]} 2. Nf3 {[%clk 0:03:00.5]}
2... Nc6 {[%clk 0:02:59]} 3. Bc4 {[%clk 0:03:01.1]} 3... Bc5 {[%clk 0:02:58.4]}
4. O-O {[%clk 0:03:00.3]} 4... Nf6 {[%clk 0:02:58.4]} 5. d4 {[%clk 0:03:00.8]}
5... Bxd4 {[%clk 0:02:57.7]} 6. Nxd4 {[%clk 0:02:59.6]} 6... Nxd4 {[%clk
0:02:58.6]} 7. Bg5 {[%clk 0:02:59.5]} 7... h6 {[%clk 0:02:55.9]} 8. Bh4 {[%clk
0:02:56.7]} 8... d6 {[%clk 0:02:53.8]} 9. Nc3 {[%clk 0:02:53.8]} 9... Be6 {[%clk
0:02:49.5]} 10. Bd3 {[%clk 0:02:34]} 10... g5 {[%clk 0:02:38.8]} 11. Bg3 {[%clk
0:02:22]} 11... Qd7 {[%clk 0:02:36.2]} 12. b4 {[%clk 0:02:15]} 12... O-O-O
{[%clk 0:02:29.6]} 13. a4 {[%clk 0:02:13.7]} 13... h5 {[%clk 0:02:24.5]} 14. h4
{[%clk 0:02:10]} 14... Rdg8 {[%clk 0:02:14.8]} 15. hxg5 {[%clk 0:01:57.6]} 15...
Rxg5 {[%clk 0:02:15.7]} 16. Bh4 {[%clk 0:01:57.9]} 16... Rg6 {[%clk 0:02:15]}
17. f4 {[%clk 0:01:48]} 17... Rhg8 {[%clk 0:01:58.6]} 18. f5 {[%clk 0:01:40.4]}
18... Rxg2+ {[%clk 0:01:57.9]} 19. Kh1 {[%clk 0:01:40.3]} 19... Bxf5 {[%clk
0:01:58.4]} 20. exf5 {[%clk 0:01:08]} 20... Qc6 {[%clk 0:01:57.9]} 21. Ne4
{[%clk 0:00:57.6]} 21... Nxe4 {[%clk 0:01:55.5]} 22. b5 {[%clk 0:00:31.5]} 22...
Nf2+ {[%clk 0:01:54]} 23. Rxf2 {[%clk 0:00:30.7]} 23... Rg1+ {[%clk 0:01:54.3]}
24. Kh2 {[%clk 0:00:30.5]} 24... Qh1# {[%clk 0:01:55.2]} 0-1

[Event "*** Titled Tuesday Blitz"]
[Site "Chess.com"]
[Date "2021.02.09"]
[Round "11"]
[White "LEGENYA1998"]
[Black "Iskusnyh"]
[Result "0-1"]
[WhiteElo "2286"]
[BlackElo "2598"]
[TimeControl "180+1"]
[EndTime "12:05:02 PST"]
[Termination "Iskusnyh won by resignation"]

1. d4 {[%clk 0:02:57.5]} 1... d5 {[%clk 0:02:59.1]} 2. Nf3 {[%clk 0:02:56.3]}
2... Nf6 {[%clk 0:02:58.5]} 3. Bf4 {[%clk 0:02:50.5]} 3... c5 {[%clk 0:02:58.3]}
4. c3 {[%clk 0:02:50.4]} 4... Qb6 {[%clk 0:02:51.2]} 5. Qb3 {[%clk 0:02:50.1]}
5... Nc6 {[%clk 0:02:51.2]} 6. Qxb6 {[%clk 0:02:43.6]} 6... axb6 {[%clk
0:02:50.6]} 7. Bc7 {[%clk 0:02:38.5]} 7... Bf5 {[%clk 0:01:45.7]} 8. Nbd2 {[%clk
0:02:33]} 8... e6 {[%clk 0:01:41.7]} 9. Bxb6 {[%clk 0:02:25.4]} 9... Nd7 {[%clk
0:01:41]} 10. Bxc5 {[%clk 0:02:22.8]} 10... Bxc5 {[%clk 0:01:37.6]} 11. dxc5
{[%clk 0:02:23.1]} 11... Nxc5 {[%clk 0:01:38.3]} 12. e3 {[%clk 0:02:22.7]} 12...
Ke7 {[%clk 0:01:26.7]} 13. Nd4 {[%clk 0:02:19.9]} 13... Bg6 {[%clk 0:01:24.2]}
14. Be2 {[%clk 0:02:10.2]} 14... Nd3+ {[%clk 0:01:22.5]} 15. Bxd3 {[%clk
0:02:08.9]} 15... Bxd3 {[%clk 0:01:23.2]} 16. Nxc6+ {[%clk 0:01:59.3]} 16...
bxc6 {[%clk 0:01:22.5]} 17. a4 {[%clk 0:01:55.7]} 17... c5 {[%clk 0:01:14.7]}
18. Nb3 {[%clk 0:01:41.7]} 18... Kd6 {[%clk 0:01:12.7]} 19. Kd2 {[%clk
0:01:41.4]} 19... Bg6 {[%clk 0:01:06.5]} 20. Nc1 {[%clk 0:01:32.5]} 20... Rhb8
{[%clk 0:01:04]} 21. Ra2 {[%clk 0:01:32.5]} 21... Bb1 {[%clk 0:01:01.9]} 22. Ra1
{[%clk 0:01:32.2]} 22... Rxb2+ {[%clk 0:01:01.3]} 23. Kd1 {[%clk 0:01:29.1]}
23... Bc2+ {[%clk 0:00:59.5]} 24. Ke1 {[%clk 0:01:28.4]} 24... Rxa4 {[%clk
0:00:58.4]} 25. Rxa4 {[%clk 0:01:28.4]} 25... Bxa4 {[%clk 0:00:58.2]} 0-1

[Event "*** Titled Tuesday Blitz"]
[Site "Chess.com"]
[Date "2021.02.09"]
[Round "11"]
[White "vladgoncharov"]
[Black "ljuks68"]
[Result "0-1"]
[WhiteElo "2475"]
[BlackElo "2392"]
[TimeControl "180+1"]
[EndTime "12:05:11 PST"]
[Termination "ljuks68 won by resignation"]

1. e4 {[%clk 0:03:00.9]} 1... e6 {[%clk 0:02:59.6]} 2. d4 {[%clk 0:02:56.9]}
2... d5 {[%clk 0:03:00]} 3. Nd2 {[%clk 0:02:55.4]} 3... Nf6 {[%clk 0:02:59.2]}
4. e5 {[%clk 0:02:55.1]} 4... Nfd7 {[%clk 0:02:59.1]} 5. Bd3 {[%clk 0:02:54.1]}
5... c5 {[%clk 0:02:59.6]} 6. c3 {[%clk 0:02:54.3]} 6... Nc6 {[%clk 0:03:00]} 7.
Ne2 {[%clk 0:02:54.3]} 7... cxd4 {[%clk 0:03:00]} 8. cxd4 {[%clk 0:02:53.7]}
8... f6 {[%clk 0:03:00.4]} 9. exf6 {[%clk 0:02:52.4]} 9... Qxf6 {[%clk
0:03:00.8]} 10. Nf3 {[%clk 0:02:50.6]} 10... h6 {[%clk 0:03:01]} 11. O-O {[%clk
0:02:49.1]} 11... Bd6 {[%clk 0:03:01.2]} 12. Re1 {[%clk 0:02:39.2]} 12... O-O
{[%clk 0:03:00.8]} 13. Ng3 {[%clk 0:02:38.3]} 13... Rf7 {[%clk 0:02:56.2]} 14.
Nh5 {[%clk 0:02:11.2]} 14... Qe7 {[%clk 0:02:55.6]} 15. a3 {[%clk 0:02:09.1]}
15... Nf6 {[%clk 0:02:28.5]} 16. Nf4 {[%clk 0:01:57.4]} 16... Ne4 {[%clk
0:02:03.4]} 17. Ng6 {[%clk 0:01:35]} 17... Qf6 {[%clk 0:01:57.2]} 18. Nge5
{[%clk 0:01:34.8]} 18... Nxe5 {[%clk 0:01:50]} 19. dxe5 {[%clk 0:01:34.1]} 19...
Bxe5 {[%clk 0:01:50.2]} 20. Bxe4 {[%clk 0:01:27.2]} 20... dxe4 {[%clk
0:01:47.4]} 21. Rxe4 {[%clk 0:01:27]} 21... Bxb2 {[%clk 0:01:46.9]} 22. Bxb2
{[%clk 0:01:26.9]} 22... Qxb2 {[%clk 0:01:46.7]} 23. a4 {[%clk 0:01:20.7]} 23...
b6 {[%clk 0:01:44.5]} 24. Re2 {[%clk 0:01:16.6]} 24... Qf6 {[%clk 0:01:42.8]}
25. Ne5 {[%clk 0:01:16]} 25... Ba6 {[%clk 0:01:37.2]} 26. Nd7 {[%clk 0:00:57.1]}
26... Rxd7 {[%clk 0:01:32.8]} 0-1

[Event "*** Titled Tuesday Blitz"]
[Site "Chess.com"]
[Date "2021.02.09"]
[Round "11"]
[White "Trovita84"]
[Black "Politov_Pavel"]
[Result "0-1"]
[WhiteElo "1967"]
[BlackElo "2420"]
[TimeControl "180+1"]
[EndTime "12:05:23 PST"]
[Termination "Politov_Pavel won on time"]

1. e4 {[%clk 0:01:36.2]} 1... e5 {[%clk 0:02:51.4]} 2. Nf3 {[%clk 0:01:36.5]}
2... Nc6 {[%clk 0:02:51.8]} 3. Bc4 {[%clk 0:01:36.8]} 3... Bc5 {[%clk
0:02:50.1]} 4. d3 {[%clk 0:01:36.6]} 4... Nf6 {[%clk 0:02:50.5]} 5. c3 {[%clk
0:01:36.9]} 5... d6 {[%clk 0:02:50]} 6. a4 {[%clk 0:01:37.2]} 6... a5 {[%clk
0:02:48.1]} 7. O-O {[%clk 0:01:37.3]} 7... h6 {[%clk 0:02:48.5]} 8. Re1 {[%clk
0:01:27.8]} 8... O-O {[%clk 0:02:48.1]} 9. Nbd2 {[%clk 0:01:05.7]} 9... Ne7
{[%clk 0:02:36]} 10. Nf1 {[%clk 0:00:06.3]} 10... Ng6 {[%clk 0:02:34.7]} 11. Ng3
{[%clk 0:00:06.2]} 11... Nh7 {[%clk 0:02:18.9]} 12. Be3 {[%clk 0:00:06.3]} 12...
Bxe3 {[%clk 0:02:17.1]} 13. fxe3 {[%clk 0:00:06.5]} 13... Ng5 {[%clk 0:02:12.7]}
14. Rf1 {[%clk 0:00:06.6]} 14... c6 {[%clk 0:02:04.5]} 15. Qe2 {[%clk
0:00:03.1]} 15... d5 {[%clk 0:02:03.9]} 16. exd5 {[%clk 0:00:01.4]} 16... cxd5
{[%clk 0:02:04.8]} 17. Bb3 {[%clk 0:00:02.1]} 17... Bg4 {[%clk 0:01:53]} 18. Bc2
{[%clk 0:00:02.6]} 18... e4 {[%clk 0:01:51.2]} 19. h3 {[%clk 0:00:01.8]} 19...
exf3 {[%clk 0:01:49.2]} 0-1

[Event "*** Titled Tuesday Blitz"]
[Site "Chess.com"]
[Date "2021.02.09"]
[Round "11"]
[White "Rsnr"]
[Black "oneshot007"]
[Result "1-0"]
[WhiteElo "2783"]
[BlackElo "2577"]
[TimeControl "180+1"]
[EndTime "12:05:24 PST"]
[Termination "Rsnr won by resignation"]

1. d4 {[%clk 0:03:00.9]} 1... d5 {[%clk 0:02:59.7]} 2. c4 {[%clk 0:03:01.2]}
2... Nc6 {[%clk 0:03:00.1]} 3. cxd5 {[%clk 0:02:56.8]} 3... Qxd5 {[%clk
0:03:01]} 4. e3 {[%clk 0:02:57.7]} 4... e5 {[%clk 0:03:01.3]} 5. Nc3 {[%clk
0:02:58.6]} 5... Bb4 {[%clk 0:03:01.8]} 6. a3 {[%clk 0:02:59.3]} 6... Bxc3+
{[%clk 0:03:02.2]} 7. bxc3 {[%clk 0:03:00.2]} 7... Nf6 {[%clk 0:03:00]} 8. c4
{[%clk 0:02:59.3]} 8... Qd6 {[%clk 0:02:59.5]} 9. d5 {[%clk 0:03:00.2]} 9... Nb8
{[%clk 0:02:58.8]} 10. Ne2 {[%clk 0:02:43.9]} 10... O-O {[%clk 0:02:57.1]} 11.
Nc3 {[%clk 0:02:44.4]} 11... Bf5 {[%clk 0:02:56.5]} 12. Be2 {[%clk 0:02:36.9]}
12... Na6 {[%clk 0:02:55.3]} 13. O-O {[%clk 0:02:35.3]} 13... Rad8 {[%clk
0:02:53.2]} 14. a4 {[%clk 0:02:34.8]} 14... Nb4 {[%clk 0:02:53.4]} 15. Ba3
{[%clk 0:02:31.8]} 15... a5 {[%clk 0:02:53.6]} 16. Qb3 {[%clk 0:02:31.6]} 16...
Rfe8 {[%clk 0:02:07.6]} 17. Rac1 {[%clk 0:02:22.3]} 17... Qb6 {[%clk 0:02:00.6]}
18. Qb2 {[%clk 0:02:07.3]} 18... c6 {[%clk 0:01:46]} 19. Rfd1 {[%clk 0:01:57.9]}
19... cxd5 {[%clk 0:01:37.8]} 20. cxd5 {[%clk 0:01:58.8]} 20... Ne4 {[%clk
0:01:38.3]} 21. Bb5 {[%clk 0:01:48]} 21... Nxc3 {[%clk 0:01:20]} 22. Qxc3 {[%clk
0:01:48]} 22... Nxd5 {[%clk 0:01:10.5]} 23. Rxd5 {[%clk 0:01:38.9]} 23... Rxd5
{[%clk 0:00:56.5]} 24. Bxe8 {[%clk 0:01:38.8]} 24... Rd3 {[%clk 0:00:54.8]} 25.
Qc5 {[%clk 0:01:33.5]} 1-0

[Event "*** Titled Tuesday Blitz"]
[Site "Chess.com"]
[Date "2021.02.09"]
[Round "11"]
[White "Chessbard1972"]
[Black "Chuchofrio1"]
[Result "1-0"]
[WhiteElo "2386"]
[BlackElo "2295"]
[TimeControl "180+1"]
[EndTime "12:05:24 PST"]
[Termination "Chessbard1972 won by resignation"]

1. d4 {[%clk 0:03:00.9]} 1... Nf6 {[%clk 0:02:58.7]} 2. Nf3 {[%clk 0:03:00.2]}
2... g6 {[%clk 0:02:57.6]} 3. c4 {[%clk 0:02:59.9]} 3... Bg7 {[%clk 0:02:55.5]}
4. g3 {[%clk 0:03:00.4]} 4... O-O {[%clk 0:02:54.5]} 5. Bg2 {[%clk 0:03:00.9]}
5... d6 {[%clk 0:02:55.4]} 6. O-O {[%clk 0:03:00.6]} 6... Nbd7 {[%clk
0:02:50.2]} 7. Nc3 {[%clk 0:03:01.1]} 7... e5 {[%clk 0:02:50.3]} 8. Qc2 {[%clk
0:03:01.6]} 8... Re8 {[%clk 0:02:40.2]} 9. Rd1 {[%clk 0:03:01.2]} 9... Qe7
{[%clk 0:02:39.7]} 10. b3 {[%clk 0:03:00.4]} 10... h6 {[%clk 0:02:33.5]} 11. Ba3
{[%clk 0:02:59.4]} 11... exd4 {[%clk 0:02:20.6]} 12. Nxd4 {[%clk 0:02:58.2]}
12... Ne5 {[%clk 0:02:20.3]} 13. h3 {[%clk 0:02:54.5]} 13... Rb8 {[%clk
0:02:19.7]} 14. Ndb5 {[%clk 0:02:47.5]} 14... a6 {[%clk 0:02:17.8]} 15. Nxd6
{[%clk 0:02:47.1]} 15... cxd6 {[%clk 0:02:14.8]} 16. Bxd6 {[%clk 0:02:46.8]}
16... Qe6 {[%clk 0:02:14.1]} 17. Bxb8 {[%clk 0:02:46.2]} 17... Nc6 {[%clk
0:02:12.1]} 18. Bf4 {[%clk 0:02:40.4]} 18... Nh5 {[%clk 0:02:11.7]} 19. Bd6
{[%clk 0:02:29.1]} 19... Nd4 {[%clk 0:02:07.1]} 20. Qe4 {[%clk 0:02:08.8]} 20...
Qd7 {[%clk 0:01:53.8]} 21. Qd5 {[%clk 0:01:55.6]} 21... Re6 {[%clk 0:01:34.8]}
22. Bb8 {[%clk 0:01:48.8]} 22... Qxd5 {[%clk 0:01:18.6]} 23. cxd5 {[%clk
0:01:46.7]} 23... Re8 {[%clk 0:01:17.6]} 24. Rac1 {[%clk 0:01:38.3]} 24... b5
{[%clk 0:01:10.8]} 25. e3 {[%clk 0:01:31.6]} 25... Nf5 {[%clk 0:01:04.2]} 26. g4
{[%clk 0:01:28.4]} 26... Bd7 {[%clk 0:01:04.2]} 27. Bh2 {[%clk 0:01:20.9]} 27...
Nxe3 {[%clk 0:01:03]} 28. fxe3 {[%clk 0:01:19.2]} 28... Rxe3 {[%clk 0:01:03.9]}
29. gxh5 {[%clk 0:01:17.5]} 29... Bxc3 {[%clk 0:01:03.8]} 30. Bf4 {[%clk
0:01:13.7]} 30... Re4 {[%clk 0:01:01.1]} 31. Bxe4 {[%clk 0:01:12.6]} 1-0

[Event "*** Titled Tuesday Blitz"]
[Site "Chess.com"]
[Date "2021.02.09"]
[Round "11"]
[White "Chessmasterzt"]
[Black "Kislov_Oleg"]
[Result "1-0"]
[WhiteElo "2620"]
[BlackElo "2491"]
[TimeControl "180+1"]
[EndTime "12:05:31 PST"]
[Termination "Chessmasterzt won by checkmate"]

1. d4 {[%clk 0:03:00.9]} 1... Nf6 {[%clk 0:02:58.3]} 2. c4 {[%clk 0:03:01.4]}
2... e6 {[%clk 0:02:58.5]} 3. g3 {[%clk 0:03:01.8]} 3... d5 {[%clk 0:02:58.5]}
4. Bg2 {[%clk 0:03:02.2]} 4... Bb4+ {[%clk 0:02:57.2]} 5. Nd2 {[%clk 0:03:01.4]}
5... dxc4 {[%clk 0:02:47.5]} 6. Qa4+ {[%clk 0:03:00.2]} 6... Bd7 {[%clk
0:02:34]} 7. Qxb4 {[%clk 0:02:59.4]} 7... Bc6 {[%clk 0:02:34.4]} 8. Ngf3 {[%clk
0:02:41.7]} 8... b5 {[%clk 0:02:30.8]} 9. a4 {[%clk 0:02:23.1]} 9... a5 {[%clk
0:02:20.1]} 10. Qc5 {[%clk 0:02:02.6]} 10... Nfd7 {[%clk 0:02:19.5]} 11. Qh5
{[%clk 0:01:58.5]} 11... g6 {[%clk 0:02:16.5]} 12. Qh6 {[%clk 0:01:55]} 12...
Nf6 {[%clk 0:02:03.7]} 13. axb5 {[%clk 0:01:48.7]} 13... Bxb5 {[%clk 0:01:59.7]}
14. Ne5 {[%clk 0:01:30.8]} 14... Ra7 {[%clk 0:01:59.6]} 15. Qg7 {[%clk
0:01:24.3]} 15... Rf8 {[%clk 0:01:59.5]} 16. Ndf3 {[%clk 0:01:18.2]} 16... Nh5
{[%clk 0:01:49.4]} 17. Qxh7 {[%clk 0:01:11.5]} 17... Qf6 {[%clk 0:01:42.3]} 18.
Bg5 {[%clk 0:01:08.4]} 18... Qf5 {[%clk 0:01:39.8]} 19. g4 {[%clk 0:01:01.4]}
19... Qc2 {[%clk 0:01:37]} 20. gxh5 {[%clk 0:00:59.4]} 20... c3 {[%clk
0:01:36.3]} 21. O-O {[%clk 0:00:53.4]} 21... cxb2 {[%clk 0:01:36.4]} 22. Rab1
{[%clk 0:00:51]} 22... a4 {[%clk 0:01:01.2]} 23. hxg6 {[%clk 0:00:51]} 23...
fxg6 {[%clk 0:01:00.1]} 24. Qe7# {[%clk 0:00:50.5]} 1-0

[Event "*** Titled Tuesday Blitz"]
[Site "Chess.com"]
[Date "2021.02.09"]
[Round "11"]
[White "Mbneu"]
[Black "Kostukov_Alex"]
[Result "1-0"]
[WhiteElo "2302"]
[BlackElo "2357"]
[TimeControl "180+1"]
[EndTime "12:05:42 PST"]
[Termination "Mbneu won by resignation"]

1. d4 {[%clk 0:03:00.9]} 1... g6 {[%clk 0:02:57.6]} 2. f4 {[%clk 0:03:00.1]}
2... Bg7 {[%clk 0:02:58]} 3. Nf3 {[%clk 0:02:59.6]} 3... d6 {[%clk 0:02:57.4]}
4. c4 {[%clk 0:02:58]} 4... f5 {[%clk 0:02:55.5]} 5. g3 {[%clk 0:02:57]} 5...
Nf6 {[%clk 0:02:56.1]} 6. Bg2 {[%clk 0:02:56.6]} 6... O-O {[%clk 0:02:57]} 7.
O-O {[%clk 0:02:54.7]} 7... Nc6 {[%clk 0:02:57.1]} 8. d5 {[%clk 0:02:52.7]} 8...
Nb8 {[%clk 0:02:56.2]} 9. Nc3 {[%clk 0:02:51.1]} 9... c6 {[%clk 0:02:46.7]} 10.
e4 {[%clk 0:02:49.5]} 10... fxe4 {[%clk 0:02:46.2]} 11. Ng5 {[%clk 0:02:48.6]}
11... cxd5 {[%clk 0:02:44.4]} 12. Nxd5 {[%clk 0:02:44]} 12... Nc6 {[%clk
0:02:33.2]} 13. Nxf6+ {[%clk 0:02:38.3]} 13... Bxf6 {[%clk 0:02:30.3]} 14. Nxe4
{[%clk 0:02:37.8]} 14... Bg7 {[%clk 0:02:30.4]} 15. Be3 {[%clk 0:02:34.1]} 15...
Bxb2 {[%clk 0:02:27.1]} 16. Rb1 {[%clk 0:02:33.5]} 16... Bg7 {[%clk 0:02:27]}
17. Ng5 {[%clk 0:02:33]} 17... e6 {[%clk 0:02:13.9]} 18. Qg4 {[%clk 0:02:29.8]}
18... Qe7 {[%clk 0:02:01.5]} 19. Rfe1 {[%clk 0:02:12]} 19... h6 {[%clk
0:01:51.9]} 20. Nf3 {[%clk 0:01:59.5]} 20... e5 {[%clk 0:01:47.2]} 21. Qxg6
{[%clk 0:01:53.2]} 21... Bf5 {[%clk 0:01:46.8]} 22. Qh5 {[%clk 0:01:43.4]} 22...
Bxb1 {[%clk 0:01:46]} 23. Rxb1 {[%clk 0:01:37.3]} 23... exf4 {[%clk 0:01:46.3]}
24. Bxf4 {[%clk 0:01:33.8]} 24... Qf7 {[%clk 0:01:46.4]} 25. Qb5 {[%clk
0:01:23.1]} 25... Nd4 {[%clk 0:01:40.3]} 26. Nxd4 {[%clk 0:01:20.7]} 26... Bxd4+
{[%clk 0:01:40.4]} 27. Kh1 {[%clk 0:01:21.2]} 27... Qg7 {[%clk 0:01:33.5]} 28.
Bxd6 {[%clk 0:01:11]} 28... Rfd8 {[%clk 0:01:24.7]} 29. Bxb7 {[%clk 0:01:02]}
29... a6 {[%clk 0:01:13.2]} 30. Qd5+ {[%clk 0:00:57.3]} 30... Kh8 {[%clk
0:01:13.2]} 31. Bxa8 {[%clk 0:00:55.5]} 31... Rxd6 {[%clk 0:01:09.7]} 32. Qxd6
{[%clk 0:00:52.9]} 1-0

[Event "*** Titled Tuesday Blitz"]
[Site "Chess.com"]
[Date "2021.02.09"]
[Round "11"]
[White "mapleaff"]
[Black "zim0ne"]
[Result "1-0"]
[WhiteElo "2433"]
[BlackElo "2507"]
[TimeControl "180+1"]
[EndTime "12:05:57 PST"]
[Termination "mapleaff won by resignation"]

1. e4 {[%clk 0:03:00.9]} 1... e5 {[%clk 0:02:59.2]} 2. Nf3 {[%clk 0:03:00.4]}
2... Nc6 {[%clk 0:02:59.3]} 3. Bb5 {[%clk 0:02:59.5]} 3... a6 {[%clk 0:02:59.2]}
4. Ba4 {[%clk 0:02:59.2]} 4... d6 {[%clk 0:02:59]} 5. h3 {[%clk 0:02:57.8]} 5...
Nf6 {[%clk 0:02:55.2]} 6. d3 {[%clk 0:02:57.3]} 6... g6 {[%clk 0:02:54.8]} 7.
O-O {[%clk 0:02:56.3]} 7... Bg7 {[%clk 0:02:54.9]} 8. c3 {[%clk 0:02:56.6]} 8...
O-O {[%clk 0:02:54.2]} 9. Nbd2 {[%clk 0:02:57.1]} 9... b5 {[%clk 0:02:53.4]} 10.
Bc2 {[%clk 0:02:56.6]} 10... h6 {[%clk 0:02:50.3]} 11. Re1 {[%clk 0:02:56.6]}
11... Bb7 {[%clk 0:02:48.5]} 12. Nf1 {[%clk 0:02:55.6]} 12... Ne7 {[%clk
0:02:48.2]} 13. Ng3 {[%clk 0:02:53.8]} 13... c5 {[%clk 0:02:48.3]} 14. Be3
{[%clk 0:02:50.2]} 14... Qc7 {[%clk 0:02:47.2]} 15. Qd2 {[%clk 0:02:49.5]} 15...
Kh7 {[%clk 0:02:44.3]} 16. Nh2 {[%clk 0:02:49.5]} 16... d5 {[%clk 0:02:26.8]}
17. Qe2 {[%clk 0:02:37.1]} 17... d4 {[%clk 0:02:25.2]} 18. Bd2 {[%clk 0:02:36]}
18... Rad8 {[%clk 0:02:22.2]} 19. Ng4 {[%clk 0:02:31.5]} 19... Nfg8 {[%clk
0:02:19.6]} 20. a4 {[%clk 0:02:26]} 20... Bc6 {[%clk 0:02:17.8]} 21. axb5 {[%clk
0:02:25.4]} 21... axb5 {[%clk 0:02:18.7]} 22. b4 {[%clk 0:02:21.6]} 22... cxb4
{[%clk 0:02:06.9]} 23. cxb4 {[%clk 0:02:11.2]} 23... h5 {[%clk 0:02:00.9]} 24.
Nh2 {[%clk 0:02:05.8]} 24... Bh6 {[%clk 0:01:59.8]} 25. Rac1 {[%clk 0:01:48.8]}
25... Qd6 {[%clk 0:01:59]} 26. Nf3 {[%clk 0:01:41.4]} 26... f6 {[%clk
0:01:56.5]} 27. Bb3 {[%clk 0:01:34.1]} 27... Ra8 {[%clk 0:01:54.8]} 28. Nh4
{[%clk 0:01:29.6]} 28... Ra3 {[%clk 0:01:51.8]} 29. Bxg8+ {[%clk 0:01:26]} 29...
Nxg8 {[%clk 0:01:50.5]} 30. Nxh5 {[%clk 0:01:17.7]} 30... gxh5 {[%clk
0:01:48.4]} 31. Nf5 {[%clk 0:01:14.1]} 31... Qe6 {[%clk 0:01:42.1]} 32. Bxh6
{[%clk 0:01:05.9]} 32... Rd8 {[%clk 0:01:17]} 33. Qxh5 {[%clk 0:01:03.5]} 33...
Be8 {[%clk 0:01:16.3]} 34. Qh4 {[%clk 0:00:54.2]} 34... Kg6 {[%clk 0:01:14.7]}
35. Qg4+ {[%clk 0:00:49.6]} 1-0

[Event "*** Titled Tuesday Blitz"]
[Site "Chess.com"]
[Date "2021.02.09"]
[Round "11"]
[White "Colombiano07"]
[Black "KarateBaby"]
[Result "1-0"]
[WhiteElo "2326"]
[BlackElo "2385"]
[TimeControl "180+1"]
[EndTime "12:06:03 PST"]
[Termination "Colombiano07 won by resignation"]

1. d4 {[%clk 0:02:50.2]} 1... g6 {[%clk 0:02:58.5]} 2. e4 {[%clk 0:02:49.6]}
2... Bg7 {[%clk 0:02:57.5]} 3. Nc3 {[%clk 0:02:50.2]} 3... d6 {[%clk 0:02:44.1]}
4. Bf4 {[%clk 0:02:49.4]} 4... a6 {[%clk 0:02:43.2]} 5. Qd2 {[%clk 0:02:48.5]}
5... b5 {[%clk 0:02:41.5]} 6. f3 {[%clk 0:02:46.7]} 6... Bb7 {[%clk 0:02:36.1]}
7. h4 {[%clk 0:02:42.7]} 7... h6 {[%clk 0:02:19.7]} 8. a4 {[%clk 0:02:34]} 8...
b4 {[%clk 0:02:01.6]} 9. Nd5 {[%clk 0:02:33.7]} 9... a5 {[%clk 0:01:57.7]} 10.
c3 {[%clk 0:02:32.9]} 10... bxc3 {[%clk 0:01:56.4]} 11. bxc3 {[%clk 0:02:33.8]}
11... Nd7 {[%clk 0:01:48.2]} 12. Bd3 {[%clk 0:02:28.9]} 12... c5 {[%clk
0:01:32.4]} 13. Ne2 {[%clk 0:02:28]} 13... Ngf6 {[%clk 0:01:25.5]} 14. Nxf6+
{[%clk 0:02:22.4]} 14... Nxf6 {[%clk 0:01:26.4]} 15. Bb5+ {[%clk 0:02:19.3]}
15... Kf8 {[%clk 0:01:18.3]} 16. O-O {[%clk 0:02:15.8]} 16... cxd4 {[%clk
0:01:17.4]} 17. cxd4 {[%clk 0:02:15.6]} 17... Nh5 {[%clk 0:01:13.6]} 18. Be3
{[%clk 0:02:12.1]} 18... Kg8 {[%clk 0:01:02.1]} 19. Rab1 {[%clk 0:02:06.5]}
19... Kh7 {[%clk 0:01:00.5]} 20. Rfc1 {[%clk 0:01:59.4]} 20... e6 {[%clk
0:00:59.9]} 21. Bc6 {[%clk 0:01:58.1]} 21... Bxc6 {[%clk 0:00:58.6]} 22. Rxc6
{[%clk 0:01:59]} 22... Qxh4 {[%clk 0:00:59.1]} 23. Rxd6 {[%clk 0:01:57.1]} 23...
Rhd8 {[%clk 0:00:37.7]} 24. Rxd8 {[%clk 0:01:52.7]} 24... Rxd8 {[%clk
0:00:38.6]} 25. Qxa5 {[%clk 0:01:51.2]} 25... Rc8 {[%clk 0:00:32.6]} 26. Qe1
{[%clk 0:01:45.1]} 26... Qe7 {[%clk 0:00:28.5]} 27. a5 {[%clk 0:01:44.6]} 27...
Qa3 {[%clk 0:00:27.9]} 28. Bf2 {[%clk 0:01:39.3]} 28... Rc2 {[%clk 0:00:26.5]}
29. Ra1 {[%clk 0:01:35.3]} 29... Qb2 {[%clk 0:00:21.8]} 30. Rb1 {[%clk
0:01:21.8]} 30... Rxe2 {[%clk 0:00:13.5]} 31. Rxb2 {[%clk 0:01:20.9]} 31...
Rxe1+ {[%clk 0:00:13.2]} 32. Bxe1 {[%clk 0:01:21.8]} 32... Bxd4+ {[%clk
0:00:13.2]} 33. Rf2 {[%clk 0:01:21.6]} 33... Bb2 {[%clk 0:00:14.1]} 34. Rxb2
{[%clk 0:01:21]} 1-0

[Event "*** Titled Tuesday Blitz"]
[Site "Chess.com"]
[Date "2021.02.09"]
[Round "11"]
[White "FairChess_on_YouTube"]
[Black "Witik"]
[Result "1-0"]
[WhiteElo "2934"]
[BlackElo "2712"]
[TimeControl "180+1"]
[EndTime "12:06:05 PST"]
[Termination "FairChess_on_YouTube won by resignation"]

1. a4 {[%clk 0:03:00.9]} 1... e5 {[%clk 0:02:47.3]} 2. a5 {[%clk 0:03:00.5]}
2... d5 {[%clk 0:02:46.7]} 3. e3 {[%clk 0:02:59.9]} 3... a6 {[%clk 0:02:43.6]}
4. d4 {[%clk 0:02:58]} 4... Nc6 {[%clk 0:02:38.4]} 5. Nf3 {[%clk 0:02:55.8]}
5... e4 {[%clk 0:02:34.6]} 6. Nfd2 {[%clk 0:02:54.9]} 6... Nf6 {[%clk
0:02:18.6]} 7. c4 {[%clk 0:02:50.9]} 7... Bb4 {[%clk 0:02:16.9]} 8. Nc3 {[%clk
0:02:49.7]} 8... dxc4 {[%clk 0:02:11.6]} 9. Bxc4 {[%clk 0:02:42.4]} 9... Nxa5
{[%clk 0:01:49.8]} 10. Qa4+ {[%clk 0:02:22.1]} 10... Nc6 {[%clk 0:01:46.3]} 11.
d5 {[%clk 0:02:11.9]} 11... Bxc3 {[%clk 0:01:37.8]} 12. dxc6 {[%clk 0:02:00.3]}
12... Bxd2+ {[%clk 0:00:44.3]} 13. Bxd2 {[%clk 0:02:01.2]} 13... O-O {[%clk
0:00:42.2]} 14. Bb4 {[%clk 0:01:37.9]} 14... Re8 {[%clk 0:00:32.5]} 15. Rd1
{[%clk 0:01:31.7]} 15... Bd7 {[%clk 0:00:13.4]} 16. cxd7 {[%clk 0:01:24.7]}
16... Re5 {[%clk 0:00:12.4]} 17. Qa2 {[%clk 0:01:22.9]} 17... c5 {[%clk
0:00:09.3]} 18. Bxf7+ {[%clk 0:01:21]} 18... Kh8 {[%clk 0:00:09.3]} 19. Bc3
{[%clk 0:01:18.7]} 19... Re7 {[%clk 0:00:03.5]} 20. Be6 {[%clk 0:01:15.2]} 20...
Qb6 {[%clk 0:00:02.5]} 21. Ba5 {[%clk 0:01:09.8]} 21... Qc6 {[%clk 0:00:02.1]}
22. d8=Q+ {[%clk 0:01:09]} 1-0